[Event "34rd NATO Championship 2024"]
[Site "Rhodes"]
[Date "2024.10.23"]
[Round "4.5"]
[White "Jacob, Tobias"]
[Black "Pedersen, Finn"]
[Result "0-1"]
[ECO "D12"]
[WhiteElo "2073"]
[BlackElo "2282"]
[Annotator "RC"]
[PlyCount "112"]
[EventDate "2024.09.18"]
[EventType "swiss"]
[EventCountry "GRE"]
[SourceTitle "playchess.com"]
[Source "ChessBase"]
[SourceQuality "1"]
[TimeControl "5400+30"]

1. d4 {[%emt 0:00:03]} d5 {[%emt 0:00:15]} 2. c4 {[%emt 0:00:05]} c6 {[%emt 0:00:07]} 3. Nf3 {[%emt 0:00:08]} Nf6 {[%emt 0:00:06]} 4. e3 {[%emt 0:00:05]} Bf5 {[%emt 0:01:06]} 5. Bd3 {[%emt 0:00:21]} Bxd3 {[%emt 0:01:18]} 6. Qxd3 {[%emt 0:00:06]} e6 {[%emt 0:00:15]} 7. Nbd2 {[%emt 0:00:43]} Nbd7 {[%emt 0:01:20]} 8. O-O {[%emt 0:00:10]} Be7 {[%emt 0:00:25]} 9. b3 {[%emt 0:01:06]} O-O {[%emt 0:00:46]} 10. Bb2 {[%emt 0:00:17]} a5 {[%emt 0:01:30]} 11. a3 {[%emt 0:04:06]} Qb8 {[%emt 0:06:19]} 12. Rad1 {[%emt 0:19:23]} Re8 {[%emt 0:02:51]} 13. e4 {[%emt 0:01:20]} dxe4 {[%emt 0:00:51]} 14. Nxe4 {[%emt 0:00:05]} Rd8 {[%emt 0:01:48]} 15. Nc3 {[%emt 0:06:54]} Nf8 {[%emt 0:05:26]} 16. Qe2 {[%emt 0:03:03]} Ng6 {[%emt 0:03:08]} 17. g3 {[%emt 0:00:42]} Bf8 {[%emt 0:01:50]} 18. Rd2 {[%emt 0:06:31]} Qc7 {[%emt 0:01:01]} 19. Rfd1 {[%emt 0:00:59]} Qb6 {[%emt 0:04:24]} 20. Rb1 {[%emt 0:06:16]} Rd7 {[%emt 0:06:28]} 21. Qd1 {[%emt 0:07:28]} Rad8 {[%emt 0:01:09]} 22. Kg2 {[%emt 0:15:12]} e5 {[%emt 0:08:04]} 23. dxe5 {[%emt 0:05:32]} Rxd2 {[%emt 0:00:40]} 24. Nxd2 {[%emt 0:00:05]} Nxe5 {[%emt 0:00:33]} 25. Na4 {[%emt 0:04:38]} Qc7 {[%emt 0:00:15]} 26. Qe2 {[%emt 0:00:33]} Re8 {[%emt 0:07:30]} 27. Ne4 {[%emt 0:01:33]} Nxe4 {[%emt 0:00:54]} 28. Qxe4 {[%emt 0:00:02]} Re6 {[%emt 0:00:16]} 29. Qc2 {[%emt 0:05:55]} Ng6 {[%emt 0:06:42]} 30. Rd1 {[%emt 0:01:41]} h5 {[%emt 0:04:02]} 31. Qd3 {[%emt 0:01:02]} b5 {[%emt 0:04:00]} 32. cxb5 {[%emt 0:04:15]} Rd6 {[%emt 0:02:36]} 33. Qc2 {[%emt 0:00:21]} Rxd1 {[%emt 0:00:36]} 34. Qxd1 {[%emt 0:00:01]} cxb5 {[%emt 0:00:18]} 35. Nc3 {[%emt 0:00:11]} Bxa3 {[%emt 0:02:01]} 36. Nd5 {[%emt 0:02:21]} Qd6 {[%emt 0:02:26]} 37. Bxa3 {[%emt 0:00:50]} Qxa3 {[%emt 0:00:10]} 38. Qxh5 {[%emt 0:01:17]} Qxb3 {[%emt 0:00:37]} 39. Qf5 {[%emt 0:00:28]} Qc4 {[%emt 0:01:43]} 40. Qd7 {[%emt 0:00:56]} Qe4+ {[%emt 0:01:55]} 41. Kg1 {[%emt 0:00:15]} a4 {[%emt 0:07:12]} 42. Qc8+ {[%emt 0:02:43]} Nf8 {[%emt 0:01:22]} 43. Qd8 {[%emt 0:00:32]} f6 {[%emt 0:02:49]} 44. Ne7+ {[%emt 0:00:19]} Kf7 {[%emt 0:00:20]} 45. Nc8 {[%emt 0:00:05]} Qc6 {[%emt 0:06:09]} 46. Nd6+ {[%emt 0:01:31]} Kg8 {[%emt 0:01:10]} 47. Qe7 {[%emt 0:01:03]} Qd5 {[%emt 0:01:16]} 48. Nc8 {[%emt 0:00:44]} Qe6 {[%emt 0:01:45]} 49. Qc5 {[%emt 0:00:11]} a3 {[%emt 0:00:27]} 50. Qxb5 {[%emt 0:00:48]} a2 {[%emt 0:00:25]} 51. Qa5 {[%emt 0:00:01]} Qc4 {[%emt 0:01:36]} 52. Kg2 {[%emt 0:01:00]} Qc6+ {[%emt 0:00:28]} 53. f3 {[%emt 0:00:10]} Qc2+ {[%emt 0:00:13]} 54. Kg1 {[%emt 0:00:16]} Qd1+ {[%emt 0:00:43]} 55. Kg2 {[%emt 0:00:02]} a1=Q {[%emt 0:00:16]} 56. Ne7+ {[%emt 0:00:18]} Kf7 {[%emt 0:00:26]} 0-1

[Event "34rd NATO Championship 2024"]
[Site "Rhodes"]
[Date "2024.10.23"]
[Round "4.6"]
[White "Helbig, Mark"]
[Black "Michalowski, Patryk"]
[Result "0-1"]
[ECO "A46"]
[WhiteElo "2280"]
[BlackElo "2054"]
[Annotator "RC"]
[PlyCount "76"]
[EventDate "2024.09.18"]
[EventType "swiss"]
[EventCountry "GRE"]
[SourceTitle "playchess.com"]
[Source "ChessBase"]
[SourceQuality "1"]
[TimeControl "5400+30"]

1. Nf3 {[%emt 0:00:02]} d5 {[%emt 0:00:08]} 2. g3 {[%emt 0:00:08]} Nf6 {[%emt 0:00:09]} 3. Bg2 {[%emt 0:00:27]} e6 {[%emt 0:00:08]} 4. O-O {[%emt 0:01:39]} Be7 {[%emt 0:00:11]} 5. d4 {[%emt 0:00:16]} b5 {[%emt 0:00:25]} 6. a4 {[%emt 0:02:53]} b4 {[%emt 0:01:14]} 7. c4 {[%emt 0:00:18]} bxc3 {[%emt 0:01:09]} 8. bxc3 {[%emt 0:06:36]} Bb7 {[%emt 0:05:52]} 9. Nbd2 {[%emt 0:01:45]} Nbd7 {[%emt 0:01:37]} 10. Rb1 {[%emt 0:02:31]} Rb8 {[%emt 0:02:22]} 11. c4 {[%emt 0:03:00]} dxc4 {[%emt 0:04:15]} 12. Rxb7 {[%emt 0:15:31]} Rxb7 {[%emt 0:00:24]} 13. Ne5 {[%emt 0:00:08]} Nxe5 {[%emt 0:06:53]} 14. Bxb7 {[%emt 0:02:43]} Qxd4 {[%emt 0:00:38]} 15. Qc2 {[%emt 0:05:30]} Bb4 {[%emt 0:10:38]} 16. Nf3 {[%emt 0:05:39]} Nxf3+ {[%emt 0:00:23]} 17. Bxf3 {[%emt 0:00:29]} O-O {[%emt 0:01:38]} 18. Be3 {[%emt 0:00:30]} Qd6 {[%emt 0:07:10]} 19. Bxa7 {[%emt 0:07:33]} Qa6 {[%emt 0:16:43]} 20. Bd4 {[%emt 0:04:00]} Rd8 {[%emt 0:10:40]} 21. Rd1 {[%emt 0:01:38]} c5 {[%emt 0:07:53]} 22. Be5 {[%emt 0:03:02]} Rxd1+ {[%emt 0:05:06]} 23. Qxd1 {[%emt 0:01:46]} Qc8 {[%emt 0:00:07]} 24. Bb7 {[%emt 0:11:03]} Qe8 {[%emt 0:04:57]} 25. Ba6 {[%emt 0:09:44]} c3 {[%emt 0:00:19]} 26. Bb5 {[%emt 0:02:09]} Qa8 {[%emt 0:00:26]} 27. Qc2 {[%emt 0:00:20]} Qe4 {[%emt 0:05:50]} 28. Qxe4 {[%emt 0:00:56]} Nxe4 {[%emt 0:00:07]} 29. Bd3 {[%emt 0:00:08]} Nd2 {[%emt 0:00:23]} 30. Bc7 {[%emt 0:03:47]} Nb3 {[%emt 0:00:50]} 31. e3 {[%emt 0:03:03]} c4 {[%emt 0:01:12]} 32. Bb1 {[%emt 0:01:13]} Na1 {[%emt 0:00:21]} 33. a5 {[%emt 0:00:45]} c2 {[%emt 0:00:08]} 34. Bxc2 {[%emt 0:00:07]} Nxc2 {[%emt 0:00:04]} 35. Bb6 {[%emt 0:02:38]} Na3 {[%emt 0:00:25]} 36. a6 {[%emt 0:00:13]} Nb5 {[%emt 0:00:07]} 37. Kf1 {[%emt 0:00:44]} c3 {[%emt 0:01:06]} 38. e4 {[%emt 0:00:09]} c2 {[%emt 0:00:34]} 0-1

[Event "34rd NATO Championship 2024"]
[Site "Rhodes"]
[Date "2024.10.23"]
[Round "4.7"]
[White "Alainis, Artis"]
[Black "Pavlidou, Ekaterini"]
[Result "1/2-1/2"]
[ECO "B21"]
[WhiteElo "1937"]
[BlackElo "2153"]
[Annotator "RC"]
[PlyCount "47"]
[EventDate "2024.09.18"]
[EventType "swiss"]
[EventCountry "GRE"]
[SourceTitle "playchess.com"]
[Source "ChessBase"]
[SourceQuality "1"]
[TimeControl "5400+30"]

1. e4 {[%emt 0:00:04]} c5 {[%emt 0:00:25]} 2. Be2 {[%emt 0:01:58]} Nc6 {[%emt 0:01:04]} 3. f4 {[%emt 0:00:17]} g6 {[%emt 0:01:06]} 4. Nf3 {[%emt 0:00:21]} Bg7 {[%emt 0:00:19]} 5. O-O {[%emt 0:00:30]} d6 {[%emt 0:00:37]} 6. d3 {[%emt 0:07:43]} Rb8 {[%emt 0:06:16]} 7. a4 {[%emt 0:01:33]} a6 {[%emt 0:00:18]} 8. Nc3 {[%emt 0:03:03]} b5 {[%emt 0:00:47]} 9. axb5 {[%emt 0:00:09]} axb5 {[%emt 0:00:10]} 10. Nd5 {[%emt 0:00:34]} e6 {[%emt 0:01:44]} 11. Ne3 {[%emt 0:00:10]} Nge7 {[%emt 0:01:18]} 12. c3 {[%emt 0:03:28]} d5 {[%emt 0:03:14]} 13. Qe1 {[%emt 0:13:25]} h5 {[%emt 0:10:47]} 14. Kh1 {[%emt 0:02:48]} d4 {[%emt 0:20:03]} 15. cxd4 {[%emt 0:05:30]} cxd4 {[%emt 0:02:29]} 16. Nc2 {[%emt 0:02:39]} b4 {[%emt 0:06:49]} 17. Bd2 {[%emt 0:13:45]} Qb6 {[%emt 0:03:48]} 18. b3 {[%emt 0:00:18]} Qc5 {[%emt 0:04:03]} 19. Qf2 {[%emt 0:13:11]} Qxc2 {[%emt 0:15:32]} 20. Rfc1 {[%emt 0:00:08]} Qxb3 {[%emt 0:00:27]} 21. Rcb1 {[%emt 0:05:47]} Qc2 {[%emt 0:00:19]} 22. Rc1 {[%emt 0:00:02]} Qb3 {[%emt 0:01:38]} 23. Rcb1 {[%emt 0:00:06]} Qc2 {[%emt 0:00:09]} 24. Rc1 {[%emt 0:25:01]} 1/2-1/2

[Event "34rd NATO Championship 2024"]
[Site "Rhodes"]
[Date "2024.10.23"]
[Round "4.8"]
[White "Jeselson, Andrew"]
[Black "Casteleijn, Diederick"]
[Result "1-0"]
[ECO "B31"]
[WhiteElo "1858"]
[BlackElo "2128"]
[Annotator "RC"]
[PlyCount "79"]
[EventDate "2024.09.18"]
[EventType "swiss"]
[EventCountry "GRE"]
[SourceTitle "playchess.com"]
[Source "ChessBase"]
[SourceQuality "1"]
[TimeControl "5400+30"]

1. e4 {[%emt 0:00:03]} c5 {[%emt 0:00:19]} 2. Nf3 {[%emt 0:00:11]} Nc6 {[%emt 0:00:06]} 3. Bb5 {[%emt 0:00:05]} Nf6 {[%emt 0:00:39]} 4. Bxc6 {[%emt 0:03:30]} dxc6 {[%emt 0:00:06]} 5. d3 {[%emt 0:00:07]} g6 {[%emt 0:01:11]} 6. h3 {[%emt 0:00:08]} Bg7 {[%emt 0:01:03]} 7. Nc3 {[%emt 0:04:23]} O-O {[%emt 0:00:31]} 8. O-O {[%emt 0:05:21]} b6 {[%emt 0:04:27]} 9. Bf4 {[%emt 0:03:07]} Ne8 {[%emt 0:03:58]} 10. e5 {[%emt 0:00:13]} Nc7 {[%emt 0:02:31]} 11. Re1 {[%emt 0:02:23]} Ne6 {[%emt 0:04:55]} 12. Qd2 {[%emt 0:02:40]} Nd4 {[%emt 0:15:11]} 13. Nxd4 {[%emt 0:01:33]} cxd4 {[%emt 0:00:06]} 14. Ne4 {[%emt 0:00:21]} Qd5 {[%emt 0:05:11]} 15. Ng3 {[%emt 0:02:08]} c5 {[%emt 0:04:39]} 16. b3 {[%emt 0:02:55]} Bb7 {[%emt 0:04:08]} 17. f3 {[%emt 0:01:58]} Rfe8 {[%emt 0:00:29]} 18. h4 {[%emt 0:22:28]} b5 {[%emt 0:04:47]} 19. h5 {[%emt 0:01:56]} c4 {[%emt 0:03:23]} 20. Re2 {[%emt 0:09:24]} Rac8 {[%emt 0:04:35]} 21. Rae1 {[%emt 0:01:44]} cxd3 {[%emt 0:01:26]} 22. cxd3 {[%emt 0:00:11]} Rc6 {[%emt 0:16:07]} 23. Bh6 {[%emt 0:05:11]} Rec8 {[%emt 0:03:58]} 24. Bxg7 {[%emt 0:00:18]} Kxg7 {[%emt 0:00:11]} 25. Qg5 {[%emt 0:00:37]} Qe6 {[%emt 0:08:30]} 26. hxg6 {[%emt 0:12:42]} fxg6 {[%emt 0:00:25]} 27. Kf2 {[%emt 0:12:45]} h6 {[%emt 0:00:38]} 28. Qh4 {[%emt 0:00:07]} Rd8 {[%emt 0:06:59]} 29. Ne4 {[%emt 0:00:53]} Rf8 {[%emt 0:01:59]} 30. Rh1 {[%emt 0:00:44]} h5 {[%emt 0:00:45]} 31. Ng3 {[%emt 0:01:14]} Qf7 {[%emt 0:01:41]} 32. Qg5 {[%emt 0:00:34]} Rh8 {[%emt 0:00:53]} 33. Rxh5 {[%emt 0:01:01]} Rxh5 {[%emt 0:00:16]} 34. Nxh5+ {[%emt 0:00:05]} Kg8 {[%emt 0:00:48]} 35. Ng3 {[%emt 0:00:51]} Rc3 {[%emt 0:00:01]} 36. Rd2 {[%emt 0:00:43]} a5 {[%emt 0:00:08]} 37. Qh4 {[%emt 0:00:15]} Qd5 {[%emt 0:01:07]} 38. Qxe7 {[%emt 0:00:24]} Rc8 {[%emt 0:00:35]} 39. Ne4 {[%emt 0:00:07]} Qf7 {[%emt 0:00:42]} 40. Qxf7+ {[%emt 0:00:09]} 1-0

[Event "34rd NATO Championship 2024"]
[Site "Rhodes"]
[Date "2024.10.23"]
[Round "4.9"]
[White "Tetepoulidis, Ioannis"]
[Black "Skwarczynski, Marcin"]
[Result "1/2-1/2"]
[ECO "C10"]
[WhiteElo "2100"]
[BlackElo "1940"]
[Annotator "RC"]
[PlyCount "158"]
[EventDate "2024.09.18"]
[EventType "swiss"]
[EventCountry "GRE"]
[SourceTitle "playchess.com"]
[Source "ChessBase"]
[SourceQuality "1"]
[TimeControl "5400+30"]

1. e4 {[%emt 0:00:03]} e6 {[%emt 0:00:04]} 2. d4 {[%emt 0:00:04]} d5 {[%emt 0:00:03]} 3. Nd2 {[%emt 0:00:03]} dxe4 {[%emt 0:00:05]} 4. Nxe4 {[%emt 0:00:04]} Nf6 {[%emt 0:00:06]} 5. Nxf6+ {[%emt 0:00:05]} Qxf6 {[%emt 0:00:04]} 6. Nf3 {[%emt 0:00:16]} h6 {[%emt 0:00:05]} 7. h4 {[%emt 0:02:03]} c5 {[%emt 0:01:39]} 8. c3 {[%emt 0:07:26]} Qd8 {[%emt 0:10:49]} 9. Be3 {[%emt 0:00:29]} cxd4 {[%emt 0:07:26]} 10. Qxd4 {[%emt 0:15:07]} Qxd4 {[%emt 0:02:43]} 11. Nxd4 {[%emt 0:00:51]} a6 {[%emt 0:05:02]} 12. a4 {[%emt 0:06:22]} e5 {[%emt 0:13:07]} 13. Nf3 {[%emt 0:09:22]} Bd6 {[%emt 0:16:26]} 14. Nd2 {[%emt 0:06:16]} Be6 {[%emt 0:09:18]} 15. Bc4 {[%emt 0:09:24]} Ke7 {[%emt 0:01:37]} 16. O-O-O {[%emt 0:01:31]} Nd7 {[%emt 0:02:07]} 17. h5 {[%emt 0:14:21]} Rac8 {[%emt 0:13:31]} 18. Bxe6 {[%emt 0:00:16]} Kxe6 {[%emt 0:00:05]} 19. g4 {[%emt 0:06:44]} Nf6 {[%emt 0:02:18]} 20. f3 {[%emt 0:01:18]} Bc5 {[%emt 0:01:09]} 21. Bxc5 {[%emt 0:05:36]} Rxc5 {[%emt 0:00:22]} 22. Nb3 {[%emt 0:04:15]} Rd5 {[%emt 0:10:01]} 23. Rxd5 {[%emt 0:00:37]} Kxd5 {[%emt 0:00:02]} 24. Rd1+ {[%emt 0:00:24]} Kc6 {[%emt 0:00:15]} 25. Na5+ {[%emt 0:01:21]} Kc7 {[%emt 0:00:16]} 26. Nc4 {[%emt 0:00:45]} e4 {[%emt 0:02:10]} 27. fxe4 {[%emt 0:00:28]} Nxe4 {[%emt 0:01:34]} 28. Rf1 {[%emt 0:04:59]} Rf8 {[%emt 0:00:55]} 29. a5 {[%emt 0:00:47]} Nc5 {[%emt 0:00:31]} 30. Kc2 {[%emt 0:00:23]} Nd7 {[%emt 0:00:13]} 31. b4 {[%emt 0:00:30]} g6 {[%emt 0:00:03]} 32. Ne3 {[%emt 0:01:56]} gxh5 {[%emt 0:00:04]} 33. gxh5 {[%emt 0:00:06]} f6 {[%emt 0:00:23]} 34. Rg1 {[%emt 0:01:06]} Re8 {[%emt 0:01:47]} 35. Nc4 {[%emt 0:00:53]} Re2+ {[%emt 0:01:03]} 36. Kd3 {[%emt 0:00:06]} Rh2 {[%emt 0:00:04]} 37. Rg7 {[%emt 0:00:27]} Kd8 {[%emt 0:00:09]} 38. Nd6 {[%emt 0:01:27]} Rxh5 {[%emt 0:00:12]} 39. Nxb7+ {[%emt 0:00:19]} Kc8 {[%emt 0:00:11]} 40. Nd6+ {[%emt 0:00:22]} Kd8 {[%emt 0:00:03]} 41. c4 {[%emt 0:00:37]} Ne5+ {[%emt 0:00:23]} 42. Ke4 {[%emt 0:00:40]} Nc6 {[%emt 0:00:16]} 43. Rb7 {[%emt 0:00:43]} Re5+ {[%emt 0:01:04]} 44. Kf4 {[%emt 0:00:42]} Re1 {[%emt 0:01:11]} 45. Nf7+ {[%emt 0:00:21]} Kc8 {[%emt 0:00:09]} 46. Nd6+ {[%emt 0:00:01]} Kd8 {[%emt 0:00:05]} 47. Kf5 {[%emt 0:00:28]} Rf1+ {[%emt 0:01:31]} 48. Ke6 {[%emt 0:00:13]} Re1+ {[%emt 0:00:47]} 49. Kxf6 {[%emt 0:00:16]} h5 {[%emt 0:00:23]} 50. Nf7+ {[%emt 0:01:36]} Kc8 {[%emt 0:00:03]} 51. Nd6+ {[%emt 0:00:03]} Kd8 {[%emt 0:00:04]} 52. Kg5 {[%emt 0:01:11]} Rd1 {[%emt 0:00:18]} 53. c5 {[%emt 0:00:28]} Rb1 {[%emt 0:00:29]} 54. Kxh5 Rxb4 {[%emt 0:00:24]} 55. Rb6 {[%emt 0:00:46]} Kc7 {[%emt 0:00:46]} 56. Kg6 {[%emt 0:00:48]} Ra4 {[%emt 0:01:00]} 57. Rb7+ {[%emt 0:00:17]} Kd8 {[%emt 0:00:07]} 58. Kf6 {[%emt 0:00:24]} Nxa5 {[%emt 0:00:47]} 59. Rh7 {[%emt 0:00:19]} Ra1 {[%emt 0:00:13]} 60. Ke6 {[%emt 0:01:03]} Re1+ {[%emt 0:00:06]} 61. Kd5 {[%emt 0:00:14]} Rd1+ {[%emt 0:00:09]} 62. Ke4 {[%emt 0:00:44]} Nc6 {[%emt 0:00:18]} 63. Nb7+ {[%emt 0:00:34]} Kc8 {[%emt 0:00:14]} 64. Nd6+ {[%emt 0:00:09]} Kd8 {[%emt 0:00:02]} 65. Rb7 {[%emt 0:00:44]} a5 {[%emt 0:00:20]} 66. Rb6 {[%emt 0:00:25]} Kd7 {[%emt 0:00:14]} 67. Rb7+ {[%emt 0:00:15]} Kd8 {[%emt 0:02:10]} 68. Nb5 {[%emt 0:00:31]} Rd2 {[%emt 0:01:08]} 69. Na7 {[%emt 0:00:35]} Nxa7 {[%emt 0:00:29]} 70. Rxa7 {[%emt 0:00:02]} Rd1 {[%emt 0:01:03]} 71. Ke5 {[%emt 0:00:09]} a4 {[%emt 0:00:18]} 72. Rxa4 {[%emt 0:00:31]} Kc7 {[%emt 0:00:02]} 73. Ra6 {[%emt 0:00:17]} Rc1 {[%emt 0:00:31]} 74. Kd5 {[%emt 0:00:44]} Rd1+ {[%emt 0:00:04]} 75. Kc4 {[%emt 0:00:12]} Rc1+ {[%emt 0:00:02]} 76. Kd4 {[%emt 0:00:09]} Rd1+ {[%emt 0:00:04]} 77. Ke3 {[%emt 0:00:20]} Rc1 {[%emt 0:00:09]} 78. Ra5 {[%emt 0:00:12]} Kc6 {[%emt 0:00:05]} 79. Kd4 {[%emt 0:00:07]} Rd1+ {[%emt 0:00:04]} 1/2-1/2

[Event "34rd NATO Championship 2024"]
[Site "Rhodes"]
[Date "2024.10.23"]
[Round "4.10"]
[White "Van Drie, Rik"]
[Black "Pietruszewski, Marcin"]
[Result "0-1"]
[ECO "D32"]
[WhiteElo "2013"]
[BlackElo "2174"]
[Annotator "RC"]
[PlyCount "64"]
[EventDate "2024.09.18"]
[EventType "swiss"]
[EventCountry "GRE"]
[SourceTitle "playchess.com"]
[Source "ChessBase"]
[SourceQuality "1"]
[TimeControl "5400+30"]

1. c4 {[%emt 0:00:07]} e6 {[%emt 0:00:06]} 2. Nc3 {[%emt 0:00:15]} d5 {[%emt 0:00:04]} 3. d4 {[%emt 0:00:11]} c5 {[%emt 0:00:05]} 4. cxd5 {[%emt 0:00:32]} exd5 {[%emt 0:00:02]} 5. Nf3 {[%emt 0:00:35]} Nf6 {[%emt 0:00:33]} 6. Bg5 {[%emt 0:01:27]} Be6 {[%emt 0:00:22]} 7. e3 {[%emt 0:00:44]} Nc6 {[%emt 0:01:23]} 8. Be2 {[%emt 0:01:42]} Be7 {[%emt 0:12:58]} 9. dxc5 {[%emt 0:03:05]} Bxc5 {[%emt 0:01:08]} 10. O-O {[%emt 0:01:10]} O-O {[%emt 0:00:27]} 11. Rc1 {[%emt 0:01:04]} Be7 {[%emt 0:05:48]} 12. Nd4 {[%emt 0:04:30]} Rc8 {[%emt 0:21:13]} 13. Bf3 {[%emt 0:04:59]} Ne5 {[%emt 0:00:59]} 14. Qa4 {[%emt 0:09:10]} Nd3 {[%emt 0:07:08]} 15. Rc2 {[%emt 0:04:06]} Bd7 {[%emt 0:24:06]} 16. Qxa7 {[%emt 0:03:33]} Ra8 {[%emt 0:03:08]} 17. Qxb7 {[%emt 0:00:43]} Nc5 {[%emt 0:00:07]} 18. Nc6 {[%emt 0:05:05]} Nxb7 {[%emt 0:00:51]} 19. Nxd8 {[%emt 0:00:11]} Bxd8 {[%emt 0:04:42]} 20. Bf4 {[%emt 0:03:33]} Be6 {[%emt 0:01:35]} 21. a3 {[%emt 0:01:13]} Be7 {[%emt 0:03:24]} 22. Nb5 {[%emt 0:02:26]} Nc5 {[%emt 0:02:45]} 23. Rfc1 {[%emt 0:01:52]} Nd3 {[%emt 0:01:54]} 24. Rd1 {[%emt 0:07:50]} Nxf4 {[%emt 0:00:40]} 25. exf4 {[%emt 0:00:02]} Rfb8 {[%emt 0:01:08]} 26. Nc7 {[%emt 0:05:26]} Ra4 {[%emt 0:00:20]} 27. f5 {[%emt 0:00:27]} Bxf5 {[%emt 0:00:16]} 28. Re2 {[%emt 0:00:50]} Be4 {[%emt 0:00:46]} 29. Nxd5 {[%emt 0:01:22]} Bxd5 {[%emt 0:03:50]} 30. Bxd5 {[%emt 0:01:17]} Nxd5 {[%emt 0:00:24]} 31. Rxd5 {[%emt 0:00:10]} Bxa3 {[%emt 0:01:30]} 32. h3 {[%emt 0:01:39]} Bf8 {[%emt 0:00:34]} 0-1

[Event "34rd NATO Championship 2024"]
[Site "Rhodes"]
[Date "2024.10.23"]
[Round "4.11"]
[White "Michalski, Daniel"]
[Black "Bohn, Ulrich"]
[Result "1/2-1/2"]
[ECO "A48"]
[WhiteElo "2011"]
[BlackElo "2149"]
[Annotator "RC"]
[PlyCount "55"]
[EventDate "2024.09.18"]
[EventType "swiss"]
[EventCountry "GRE"]
[SourceTitle "playchess.com"]
[Source "ChessBase"]
[SourceQuality "1"]
[TimeControl "5400+30"]

1. d4 {[%emt 0:00:02]} Nf6 {[%emt 0:00:11]} 2. Nf3 {[%emt 0:00:22]} c5 {[%emt 1:31:19]} 3. e3 {[%emt 1:31:36]} g6 {[%emt 0:00:00]} 4. Be2 {[%emt 0:00:00]} Bg7 {[%emt 0:00:00]} 5. O-O {[%emt 0:00:00]} O-O {[%emt 0:00:00]} 6. dxc5 {[%emt 0:00:00]} Qa5 {[%emt 0:00:00]} 7. a3 {[%emt 0:00:00]} Qxc5 {[%emt 0:02:30]} 8. c4 {[%emt 0:02:30]} d6 {[%emt 0:00:30]} 9. b4 {[%emt 0:00:00]} Qb6 {[%emt 0:00:00]} 10. Bb2 {[%emt 0:00:00]} a5 {[%emt 0:00:00]} 11. Nc3 {[%emt 0:00:00]} Nbd7 {[%emt 0:00:00]} 12. Nb5 {[%emt 0:00:00]} Qd8 {[%emt 0:00:00]} 13. Qb3 {[%emt 0:00:00]} Nb6 {[%emt 0:00:00]} 14. Rfd1 {[%emt 0:00:00]} axb4 {[%emt 0:03:00]} 15. axb4 {[%emt 0:00:00]} Rxa1 {[%emt 0:00:00]} 16. Bxa1 {[%emt 0:00:00]} Be6 {[%emt 0:00:00]} 17. Nfd4 {[%emt 0:00:00]} Qc8 {[%emt 0:00:00]} 18. Nxe6 {[%emt 0:00:00]} Qxe6 {[%emt 0:00:00]} 19. Nd4 {[%emt 0:00:00]} Qc8 {[%emt 0:00:00]} 20. Rc1 {[%emt 0:00:00]} Nfd7 {[%emt 0:00:00]} 21. Bb2 {[%emt 0:00:00]} Ne5 {[%emt 0:00:00]} 22. c5 {[%emt 0:02:44]} dxc5 {[%emt 0:00:00]} 23. bxc5 {[%emt 0:01:19]} Nbd7 {[%emt 0:00:00]} 24. Ba3 {[%emt 0:00:10]} Nc6 {[%emt 0:00:00]} 25. Nxc6 {[%emt 0:00:58]} bxc6 {[%emt 0:00:00]} 26. Bf3 {[%emt 0:00:36]} Qa8 {[%emt 0:00:00]} 27. Rc4 {[%emt 0:02:22]} Ne5 {[%emt 0:00:00]} 28. Ra4 {[%emt 0:00:35]} 1/2-1/2

[Event "34rd NATO Championship 2024"]
[Site "Rhodes"]
[Date "2024.10.23"]
[Round "4.12"]
[White "Jauk, Wilhelm"]
[Black "Cheung, Jan"]
[Result "1/2-1/2"]
[ECO "A29"]
[WhiteElo "2143"]
[BlackElo "2010"]
[Annotator "RC"]
[PlyCount "73"]
[EventDate "2024.09.18"]
[EventType "swiss"]
[EventCountry "GRE"]
[SourceTitle "playchess.com"]
[Source "ChessBase"]
[SourceQuality "1"]
[TimeControl "5400+30"]

1. c4 {[%emt 0:00:05]} e5 {[%emt 0:00:13]} 2. Nc3 {[%emt 0:00:07]} Nc6 {[%emt 0:00:26]} 3. g3 {[%emt 0:00:27]} Nf6 {[%emt 0:05:28]} 4. Bg2 {[%emt 0:00:12]} Bb4 {[%emt 0:00:13]} 5. e4 {[%emt 0:11:46]} Bxc3 {[%emt 0:03:56]} 6. bxc3 {[%emt 0:01:12]} d6 {[%emt 0:00:27]} 7. d3 {[%emt 0:01:36]} h6 {[%emt 0:02:53]} 8. Nf3 {[%emt 0:04:57]} O-O {[%emt 0:00:50]} 9. O-O {[%emt 0:00:39]} Be6 {[%emt 0:04:51]} 10. h3 {[%emt 0:06:01]} Qd7 {[%emt 0:02:29]} 11. Kh2 {[%emt 0:00:17]} Rae8 {[%emt 0:11:09]} 12. Ng1 {[%emt 0:11:48]} Nh7 {[%emt 0:04:14]} 13. Be3 {[%emt 0:09:27]} b6 {[%emt 0:07:04]} 14. Qd2 {[%emt 0:01:33]} Kh8 {[%emt 0:02:34]} 15. Rad1 {[%emt 0:01:35]} Na5 {[%emt 0:03:03]} 16. f4 {[%emt 0:13:16]} exf4 {[%emt 0:03:01]} 17. Bxf4 {[%emt 0:01:25]} f5 {[%emt 0:03:59]} 18. exf5 {[%emt 0:04:10]} Bxf5 {[%emt 0:01:43]} 19. g4 {[%emt 0:02:32]} Bg6 {[%emt 0:41:27]} 20. Ne2 {[%emt 0:12:36]} c5 {[%emt 0:00:00]} 21. Ng3 {[%emt 0:15:19]} Nc6 22. Be4 {[%emt 0:00:00]} Bxe4 {[%emt 0:00:00]} 23. Nxe4 {[%emt 0:00:00]} Ne5 {[%emt 0:00:00]} 24. Bxe5 dxe5 25. Qe2 {[%emt 0:02:00]} Rxf1 {[%emt 0:00:00]} 26. Rxf1 {[%emt 0:00:00]} Rf8 {[%emt 0:00:00]} 27. Rxf8+ Nxf8 28. Nf2 {[%emt 0:00:00]} Ng6 {[%emt 0:01:38]} 29. Qe4 Nf8 {[%emt 0:00:37]} 30. Qe2 {[%emt 0:00:08]} Ng6 {[%emt 0:00:23]} 31. Qe4 {[%emt 0:00:30]} Qd6 {[%emt 0:00:30]} 32. Kg1 {[%emt 0:00:23]} Nf4 {[%emt 0:00:02]} 33. Qa8+ {[%emt 0:00:30]} Kh7 {[%emt 0:00:30]} 34. Qe4+ {[%emt 0:00:09]} Kh8 {[%emt 0:00:30]} 35. Qa8+ {[%emt 0:00:30]} Kh7 {[%emt 0:00:46]} 36. Qe4+ {[%emt 0:00:30]} Kh8 {[%emt 0:00:30]} 37. Qa8+ {[%emt 0:00:11]} 1/2-1/2